[Event "85th ARM-ch HL 2025"]
[Site "Yerevan"]
[Date "2025.01.14"]
[Round "1.1"]
[White "Harutyunyan, Tigran K."]
[Black "Davtyan, Artur"]
[Result "1/2-1/2"]
[Annotator "TA"]
[ECO "D35"]
[WhiteElo "2513"]
[BlackElo "2458"]
[PlyCount "100"]
[EventDate "2025.01.13"]
[EventType "tourn"]
[EventCountry "ARM"]
[SourceTitle "playchess.com"]
[Source "ChessBase"]
[SourceQuality "1"]
[TimeControl "40/5400+30:1800+30"]

{[%evp 23,100,22,41,35,45,20,14,15,24,22,26,5,5,0,27,0,39,50,47,57,82,72,76,43,74,43,41,59,42,53,43,3,13,6,10,0,10,17,65,67,74,55,107,109,121,116,106,87,148,159,160,159,157,136,205,200,229,229,224,110,100,100,107,95,107,107,109,102,94,94,127,100,124,95,95,95,95,95,95]} 1. d4 {[%emt 0:00:08]} Nf6 {[%emt 0:00:51]} 2. Nf3 {[%emt 0:00:51]} d5 {[%emt 0:00:07]} 3. c4 {[%emt 0:00:20]} e6 {[%emt 0:04:09]} 4. Nc3 {[%emt 0:00:35]} Be7 {[%emt 0:00:21]} 5. cxd5 {[%emt 0:00:31]} exd5 {[%emt 0:00:14]} 6. Bf4 {[%emt 0:00:11]} c6 {[%emt 0:00:12]} 7. e3 {[%emt 0:00:29]} Bd6 {[%emt 0:07:45]} 8. Bxd6 {[%emt 0:05:24]} Qxd6 {[%emt 0:01:48]} 9. Qc2 {[%emt 0:02:43]} O-O {[%emt 0:00:17]} 10. Bd3 {[%emt 0:00:22]} Nbd7 {[%emt 0:00:22]} 11. h3 {[%emt 0:01:21]} Re8 {[%emt 0:00:06]} 12. O-O {[%emt 0:00:31]} Nf8 {[%emt 0:00:06]} 13. a3 {[%emt 0:10:21]} Be6 {[%emt 0:20:45][%cal Bc8e6,Be6f7,Bf7g6][%mdl 32]} 14. Ne5 {[%emt 0:07:25]} N6d7 {[%emt 0:00:56]} 15. f4 {[%emt 0:02:09][%cal Bf2f4,Bf4f5][%mdl 32] f5 is in the air} f6 {[%emt 0:00:20]} 16. Nf3 {[%emt 0:10:57]} Bf7 {[%emt 0:03:23]} 17. Qd2 {[%emt 0:11:41]} Bg6 {[%emt 0:09:52]} 18. Rae1 {[%emt 0:04:30]} Be4 {[%emt 0:00:59]} 19. Nh4 {[%emt 0:03:06]} g6 {[%emt 0:01:48][%cal Bg7g6,Bg6g5][%mdl 32]} 20. f5 {[%emt 0:02:55]} g5 {[%emt 0:07:10] Threatens to win with ...Bxd3.} 21. Nf3 $1 {[%emt 0:00:20]} Bxf3 {[%emt 0:00:22]} 22. gxf3 {[%emt 0:08:42]} Re7 {[%emt 0:01:46]} 23. Qh2 {[%emt 0:02:55]} Qxh2+ {[%emt 0:00:58]} 24. Kxh2 {[%emt 0:00:02]} Rae8 {[%emt 0:00:17]} 25. e4 {[%emt 0:00:16]} Nb6 {[%emt 0:04:27]} 26. Rc1 {[%emt 0:03:11]} Nfd7 {[%emt 0:02:25]} 27. Kg3 {[%emt 0:02:56]} dxe4 $1 {[%emt 0:01:43]} 28. fxe4 {[%emt 0:01:18]} c5 {[%emt 0:00:22]} 29. Nb5 {[%emt 0:02:50][%cal Bc3b5,Bb5d4,Bd4f3][%mdl 32]} cxd4 {[%emt 0:02:07]} 30. Nxd4 {[%emt 0:00:21]} Nf8 {[%emt 0:08:02] Repels Ne6} (30... Na4 $11) 31. Bb1 $14 {[%emt 0:01:36]} Kh8 {[%emt 0:03:08]} 32. Nf3 {[%emt 0:02:41][%cal Oe4e5]} Nbd7 {[%emt 0:01:11]} (32... Nfd7 $14) 33. Rfd1 {[%emt 0:01:27]} Ne5 {[%emt 0:00:20]} 34. Nxe5 {[%emt 0:06:23]} Rxe5 {[%emt 0:01:16]} 35. Rc7 {[%emt 0:00:11]} R8e7 {[%emt 0:01:44]} (35... R5e7 $142 36. Rdc1 h5) 36. Rc8 $16 {[%emt 0:00:31]} Kg7 {[%emt 0:01:30]} 37. Rdd8 {[%emt 0:03:15] White is more active.} Nd7 {[%emt 0:00:17] [#]} 38. b4 $1 {[%emt 0:01:05] Against Nc5} a5 {[%emt 0:07:38]} (38... Nb6 $16 39. Rb8 Rf7) 39. Bd3 $18 {[%emt 0:00:10]} axb4 {[%emt 0:00:05]} 40. axb4 {[%emt 0:00:00]} Kh6 {[%emt 0:00:00]} 41. Rc7 {[%emt 0:05:24]} (41. Rc2 $18 {and White stays clearly on top.}) 41... Nb6 $16 {[%emt 0:00:26]} 42. Rxe7 {[%emt 0:00:11]} Rxe7 {[%emt 0:00:05][%mdl 4096] Endgame [#] KRB-KRN} 43. Rd6 $1 {[%emt 0:00:04][%csl LRb6,LRf6]} Nc8 {[%emt 0:22:48]} 44. Rxf6+ {[%emt 0:05:52]} Kg7 {[%emt 0:01:34]} 45. Re6 {[%emt 0:00:12]} Rxe6 {[%emt 0:00:06]} 46. fxe6 {[%emt 0:00:05] Black must now prevent Kg4.} Ne7 {[%emt 0:01:48]} 47. Kg4 {[%emt 0:06:48]} h6 {[%emt 0:04:44]} 48. b5 {[%emt 0:03:33]} b6 {[%emt 0:02:03]} 49. e5 {[%emt 0:01:27]} Kg8 {[%emt 0:00:06]} 50. Be4 {[%emt 0:00:24]} Kf8 {[%emt 0:00:06]} 1/2-1/2

[Event "85th ARM-ch HL 2025"]
[Site "Yerevan"]
[Date "2025.01.14"]
[Round "1.2"]
[White "Agasarov, Benik"]
[Black "Grigoryan, Karen H."]
[Result "1/2-1/2"]
[Annotator "TA"]
[ECO "D37"]
[WhiteElo "2387"]
[BlackElo "2572"]
[PlyCount "99"]
[EventDate "2025.01.13"]
[EventType "tourn"]
[EventCountry "ARM"]
[SourceTitle "playchess.com"]
[Source "ChessBase"]
[SourceQuality "1"]
[TimeControl "40/5400+30:1800+30"]

{[%evp 9,99,24,37,39,39,33,35,25,24,21,32,18,18,13,14,8,12,6,9,10,14,8,13,10,14,10,19,12,22,22,22,22,38,22,22,22,22,22,33,14,24,36,34,8,16,13,36,27,14,25,54,58,65,65,53,22,109,109,100,105,314,310,322,323,322,65,78,76,65,65,62,46,46,44,52,0,0,0,0,0,0,0,8,8,9,9,9,8,8,8,9,8]} 1. d4 {[%emt 0:00:03]} Nf6 {[%emt 0:00:19]} 2. c4 {[%emt 0:00:08]} e6 {[%emt 0:00:08]} 3. Nf3 {[%emt 0:00:06]} d5 {[%emt 0:00:13]} 4. Nc3 {[%emt 0:00:12]} h6 {[%emt 0:00:16]} 5. Bf4 {[%emt 0:01:40]} Bd6 {[%emt 0:00:27]} 6. Bxd6 {[%emt 0:00:24]} Qxd6 {[%emt 0:00:09]} 7. e3 {[%emt 0:00:21]} O-O {[%emt 0:00:51]} 8. Rc1 {[%emt 0:00:56]} a6 {[%emt 0:00:24]} 9. cxd5 {[%emt 0:14:51]} exd5 {[%emt 0:02:37]} 10. Bd3 {[%emt 0:00:09]} Bg4 {[%emt 0:02:15]} 11. h3 {[%emt 0:00:39]} Bxf3 {[%emt 0:00:09]} 12. Qxf3 {[%emt 0:00:07]} Nbd7 {[%emt 0:00:16]} 13. O-O {[%emt 0:02:08]} c6 {[%emt 0:00:26]} 14. a3 {[%emt 0:02:08]} Rfe8 {[%emt 0:01:21]} 15. Rfe1 {[%emt 0:03:06]} a5 {[%emt 0:02:19]} 16. g3 {[%emt 0:03:46]} Re7 {[%emt 0:02:04]} 17. Qf4 {[%emt 0:04:51]} Qxf4 {[%emt 0:02:43]} 18. gxf4 {[%emt 0:00:05]} a4 {[%emt 0:02:19]} 19. f3 {[%emt 0:05:01]} Nb6 {[%emt 0:10:58]} 20. Kf2 {[%emt 0:03:44]} Rd7 {[%emt 0:07:23]} 21. Rcd1 {[%emt 0:15:50]} Ne8 {[%emt 0:06:10]} 22. Re2 {[%emt 0:07:23][%cal Be1e2,Be2c2,Bc2c1,Bc1h1][%mdl 32]} Kf8 {[%emt 0:09:30]} 23. Rc2 {[%emt 0:03:56]} Nf6 {[%emt 0:05:44]} 24. Nb1 {[%emt 0:04:48]} Re8 {[%emt 0:02:36]} 25. Re1 {[%emt 0:01:11]} Rde7 {[%emt 0:01:58][%cal Ob6c4]} 26. Nd2 {[%emt 0:01:26]} Nh5 {[%emt 0:01:19][%cal Oh5f4]} 27. Rcc1 {[%emt 0:03:12]} g5 {[%emt 0:03:27]} 28. fxg5 {[%emt 0:04:37]} hxg5 {[%emt 0:00:51]} 29. Re2 {[%emt 0:00:07]} f6 {[%emt 0:16:55]} 30. Rh1 {[%emt 0:01:30]} Rg7 {[%emt 0:00:09] Prevents Bg6.} 31. Ree1 {[%emt 0:01:49]} Ke7 {[%emt 0:01:30]} 32. Reg1 {[%emt 0:00:56]} Kf7 {[%emt 0:04:20]} (32... Nc8 $11) 33. Rg4 $16 {[%emt 0:07:08]} Reg8 {[%emt 0:02:08]} 34. Rh2 {[%emt 0:00:44] White is more active.} Nc8 $2 {[%emt 0:03:53]} (34... Rh8 $16) 35. h4 $18 {[%emt 0:00:31]} gxh4 {[%emt 0:08:43]} 36. Rgxh4 {[%emt 0:00:04]} Ng3 {[%emt 0:00:06] [#]} 37. Rg4 $2 {[%emt 0:04:34]} Rxg4 $14 {[%emt 0:00:15]} 38. fxg4 {[%emt 0:00:05]} Rxg4 {[%emt 0:00:22]} 39. Rg2 $1 {[%emt 0:01:16][%cal Of2f3]} ({Don't play} 39. Rh3 Ne4+ 40. Nxe4 (40. Bxe4 dxe4 41. Rh7+ Ke6 $11) 40... dxe4) 39... Nh1+ {[%emt 0:01:53]} 40. Kg1 {[%emt 0:00:00]} Rh4 $1 {[%emt 0:00:00]} ({Not} 40... Ng3 $2 41. Kh2 Ne4 42. Rxg4 $18) 41. Nf1 {[%emt 0:14:14]} Nd6 {[%emt 0:01:42]} 42. Nh2 {[%emt 0:01:04]} (42. Rc2 $14) 42... Rh3 $1 $11 {[%emt 0:00:14]} 43. Kxh1 {[%emt 0:00:48] Black must now prevent Re2.} Rxe3 {[%emt 0:00:08]} 44. Bc2 {[%emt 0:06:26][%cal Oh1g1]} Re1+ $1 {[%emt 0:05:59]} 45. Rg1 {[%emt 0:00:08]} Rxg1+ {[%emt 0:00:06]} 46. Kxg1 {[%emt 0:00:04]} Nc4 {[%emt 0:01:23]} 47. Bxa4 {[%emt 0:00:06]} Nxb2 {[%emt 0:00:05]} 48. Bc2 {[%emt 0:00:26]} Ke6 {[%emt 0:03:24]} 49. Kf2 {[%emt 0:00:28]} Kd6 {[%emt 0:00:34]} 50. Ng4 {[%emt 0:00:00]} 1/2-1/2

[Event "85th ARM-ch HL 2025"]
[Site "Yerevan"]
[Date "2025.01.14"]
[Round "1.3"]
[White "Gharibyan, Mamikon"]
[Black "Hayrapetyan, Hovik"]
[Result "1-0"]
[Annotator "TA"]
[ECO "B90"]
[WhiteElo "2486"]
[BlackElo "2462"]
[PlyCount "79"]
[EventDate "2025.01.13"]
[EventType "tourn"]
[EventCountry "ARM"]
[SourceTitle "playchess.com"]
[Source "ChessBase"]
[SourceQuality "1"]
[TimeControl "40/5400+30:1800+30"]

{[%evp 12,79,28,3,7,21,16,-5,15,0,0,-9,-13,-15,-13,-29,-11,-35,-25,-37,-46,-26,-41,-32,-49,-85,-72,-100,-106,-72,-110,-168,-182,-179,-157,-199,-182,-180,-202,-235,-251,-247,-238,-188,-23,-131,-95,-110,233,-547,-543,-498,0,0,1054,1000,1579,1660,1750,1785,1890,1820,1767,1767,1951,2037,2517,2408,29990,29991]} 1. e4 {[%emt 0:00:06]} c5 {[%emt 0:00:06]} 2. Nf3 {[%emt 0:00:09]} d6 {[%emt 0:00:06]} 3. d4 {[%emt 0:00:09]} cxd4 {[%emt 0:00:06]} 4. Nxd4 {[%emt 0:00:04]} Nf6 {[%emt 0:00:08]} 5. Nc3 {[%emt 0:00:13]} a6 {[%emt 0:00:10]} 6. h3 {[%emt 0:00:08]} e5 {[%emt 0:00:07]} 7. Nb3 {[%emt 0:00:06]} Be7 {[%emt 0:00:30]} 8. Be3 {[%emt 0:00:18]} Qc7 {[%emt 0:03:44]} 9. a4 {[%emt 0:01:10]} b6 {[%emt 0:06:03]} 10. g4 {[%emt 0:02:21]} h6 $1 {[%emt 0:00:15]} 11. Nd5 {[%emt 0:23:15]} Nxd5 {[%emt 0:00:13]} 12. exd5 {[%emt 0:00:23]} Nd7 {[%emt 0:01:42]} 13. h4 {[%emt 0:08:33]} Qd8 {[%emt 0:07:10]} 14. Qd2 {[%emt 0:11:51]} Nc5 {[%emt 0:14:39]} 15. Nxc5 {[%emt 0:12:21]} bxc5 {[%emt 0:00:21]} 16. Be2 {[%emt 0:00:57]} Rb8 {[%emt 0:00:24]} 17. c3 {[%emt 0:08:10]} a5 {[%emt 0:18:06]} (17... Bxh4 18. g5 hxg5 19. Bxg5 $16) 18. Kf1 {[%emt 0:03:33]} Bd7 {[%emt 0:13:51][%cal Od8c8]} (18... Bxh4 19. Bb5+ Bd7 20. g5 hxg5 21. Bxg5 Bxb5+ 22. axb5 $11) 19. Kg2 {[%emt 0:04:52]} Bxh4 {[%emt 0:24:45]} 20. g5 {[%emt 0:19:31]} hxg5 {[%emt 0:00:04]} (20... Bxg5 21. Bxg5 Qc7 22. Be3 $16) 21. b4 {[%emt 0:00:49]} O-O $19 {[%emt 0:03:32]} (21... cxb4 22. Bxg5 bxc3 23. Qe3 $11) 22. bxc5 {[%emt 0:00:04]} f5 {[%emt 0:00:44]} 23. Rxh4 {[%emt 0:02:13]} gxh4 {[%emt 0:00:29]} 24. Bg5 {[%emt 0:00:04]} Qe8 {[%emt 0:01:54]} 25. c6 {[%emt 0:00:15] [#]} f4 $1 {[%emt 0:02:33]} 26. Kh2 {[%emt 0:00:25]} (26. cxd7 Qg6 (26... Qxd7 27. Kh2 $14) 27. Kh2 Qxg5 $19) 26... Bf5 $1 {[%emt 0:00:47]} 27. Rg1 {[%emt 0:00:41]} Kh7 $2 {[%emt 0:00:59] Prevents Bh6} (27... Rb1 $1 $19 {[%cal Rb1g1]} 28. Rxb1 Bxb1) 28. Bb5 {[%emt 0:00:30]} (28. Bd3 $1 $11) 28... Qf7 {[%emt 0:00:05]} 29. c4 {[%emt 0:00:13][%cal Oc4c5]} Qh5 $2 {[%emt 0:00:35][%mdl 8192] [#]} (29... Qa7 $1 $17 {stays on course. and ...Rbe8 would now be decisive} 30. f3 Rf7) 30. c5 $4 {[%emt 0:01:34][%mdl 8192]} (30. Qd1 $1 $18 {[%cal Rd1h5] was the only winning move.} Qf7 (30... Qxd1 31. Rxd1 e4 32. c5 $18) 31. c5 dxc5 32. d6 (32. Bxh4 $2 Rh8 $19)) 30... Qf3 {[%emt 0:00:27]} (30... dxc5 31. Qd1 (31. Qxa5 $2 Qf3 $19) 31... Qxd1 32. Rxd1 $16) 31. Bf1 {[%emt 0:00:04] [#] Prevents Qh3+} Rh8 $2 {[%emt 0:00:40]} (31... dxc5 32. Be7 Rf7 33. c7 $16) (31... Qa3 $1 $19 32. Be7 Rb3) 32. cxd6 $11 {[%emt 0:00:55][%cal Bc5d6,Bd6d7][%mdl 32] Black must now prevent d7!.} Kg8 $2 {[%emt 0:00:30][%mdl 8192]} (32... Qa3 $11 33. Qe2 (33. Qxa5 $2 Rb2 $19) (33. d7 Rb3 $15) 33... Rb2 (33... Qxd6 34. Bxf4 exf4 35. Qh5+ Kg8 36. Qxf5 $16) 34. Qh5+ (34. Qxe5 Rxf2+ 35. Kh1 Qf3+ 36. Bg2 Qg4 $19) 34... Kg8 35. Qe8+ Kh7 36. Qh5+ (36. Qxe5 $2 Rxf2+ 37. Kh1 Qf3+ 38. Bg2 Qg4 $19)) 33. d7 $18 {[%emt 0:00:32]} (33. Qxa5 $2 {is the wrong capture.} Qxf2+ 34. Rg2 Qxf1 $19) 33... Qg3+ {[%emt 0:00:33]} 34. Rxg3 {[%emt 0:00:16]} hxg3+ {[%emt 0:00:05]} 35. Kg1 {[%emt 0:00:31]} Be4 {[%emt 0:00:15]} 36. fxg3 {[%emt 0:00:33]} Rh1+ {[%emt 0:01:21]} 37. Kf2 {[%emt 0:00:04]} Rh2+ {[%emt 0:00:17]} 38. Ke1 {[%emt 0:00:39]} Rxd2 {[%emt 0:00:42]} 39. Kxd2 {[%emt 0:00:33]} Bxd5 {[%emt 0:00:31]} 40. c7 {[%emt 0:00:00]} ({Inferior is} 40. d8=B Bxc6 41. gxf4 (41. Bxa5 fxg3 42. Bc4+ Kf8 $11) 41... exf4 $11) 1-0

[Event "85th ARM-ch HL 2025"]
[Site "Yerevan"]
[Date "2025.01.14"]
[Round "1.4"]
[White "Petrosyan, Manuel"]
[Black "Hovhannisyan, Robert"]
[Result "0-1"]
[Annotator "TA"]
[ECO "A20"]
[WhiteElo "2590"]
[BlackElo "2626"]
[PlyCount "82"]
[EventDate "2025.01.13"]
[EventType "tourn"]
[EventCountry "ARM"]
[SourceTitle "playchess.com"]
[Source "ChessBase"]
[SourceQuality "1"]
[TimeControl "40/5400+30:1800+30"]

{[%evp 9,82,-2,3,6,4,-1,0,0,10,13,59,47,58,60,70,70,85,77,97,108,103,118,89,119,116,96,88,98,107,107,94,97,85,73,86,10,19,0,23,-12,-8,-8,-6,-10,-9,-4,0,0,0,0,0,0,22,12,8,0,15,16,46,37,46,0,0,-20,-18,-24,-22,-145,-151,-148,-150,-396,-398,-398,-391]} 1. c4 {[%emt 0:03:32]} e5 {[%emt 0:01:27][%cal Be7e5,Be5e4][%mdl 32]} 2. Nf3 {[%emt 0:01:09]} e4 {[%emt 0:01:34]} 3. Nd4 {[%emt 0:00:22]} Nc6 {[%emt 0:00:09]} 4. e3 {[%emt 0:00:46]} Nf6 {[%emt 0:00:58]} 5. Nc3 {[%emt 0:01:38]} Nxd4 {[%emt 0:01:33]} 6. exd4 {[%emt 0:00:08]} c6 {[%emt 0:00:21]} 7. d5 {[%emt 0:03:55]} cxd5 {[%emt 0:10:29]} 8. cxd5 {[%emt 0:00:04][%cal Bc4d5,Bd5d6][%mdl 32] The position is equal.} Bb4 {[%emt 0:00:24]} 9. a3 {[%emt 0:00:56]} Ba5 {[%emt 0:00:31]} (9... Bc5 $11) 10. d6 $1 $14 {[%emt 0:05:39]} O-O {[%emt 0:06:03]} 11. b4 $1 {[%emt 0:02:06]} Bb6 {[%emt 0:00:07]} 12. d4 $1 {[%emt 0:00:04]} a5 {[%emt 0:09:17]} 13. Rb1 {[%emt 0:00:59]} Ba7 {[%emt 0:09:32]} 14. Bg5 $1 {[%emt 0:20:40][%cal Bc1g5,Bg5h4,Bh4g3][%mdl 32] And now Nd5 would win.} axb4 {[%emt 0:06:08]} 15. axb4 {[%emt 0:04:56]} h6 {[%emt 0:02:08]} 16. Bh4 {[%emt 0:01:10] Black must now prevent Nd5.} Kh8 {[%emt 0:28:32]} 17. Nb5 {[%emt 0:16:56] Strongly threatening Ra1.} Bb8 {[%emt 0:01:20]} 18. d5 {[%emt 0:08:00]} Ra6 {[%emt 0:01:18]} 19. Bc4 {[%emt 0:07:41]} Bxd6 {[%emt 0:00:42]} 20. Nxd6 {[%emt 0:00:15]} Rxd6 {[%emt 0:00:04]} 21. Bg3 {[%emt 0:02:49]} Rb6 {[%emt 0:03:33]} 22. d6 {[%emt 0:02:24]} (22. Qd4 $16) 22... Rc6 $11 {[%emt 0:00:51]} 23. Qd4 {[%emt 0:04:10] Hoping for b5.} b5 $1 {[%emt 0:03:36]} 24. Bxb5 {[%emt 0:06:41]} Qb6 {[%emt 0:00:49]} ({Much worse is} 24... Rb6 $6 25. Bc4 $16) 25. Qxb6 {[%emt 0:00:30]} (25. Bxc6 $2 {loses.} Qxd4 26. O-O dxc6 $19) 25... Rxb6 {[%emt 0:00:04]} 26. Bc4 {[%emt 0:00:04]} Ba6 {[%emt 0:00:50]} 27. b5 {[%emt 0:00:41][%cal Oe1e2]} Rfb8 {[%emt 0:03:35][%cal Ra6b5]} 28. Kd2 $36 {[%emt 0:00:25][%mdl 2048] White is pushing.} Bxb5 {[%emt 0:01:25]} 29. Bxf7 {[%emt 0:00:08]} Kh7 {[%emt 0:00:30]} 30. Rhc1 {[%emt 0:01:10]} Bc6 {[%emt 0:00:25] Black is weak on the dark squares} 31. Rxb6 {[%emt 0:00:05]} Rxb6 {[%emt 0:00:02]} 32. Ke3 {[%emt 0:00:29]} Rb4 {[%emt 0:02:39]} 33. Rc5 {[%emt 0:02:33]} Ra4 {[%emt 0:01:04]} 34. h3 {[%emt 0:01:43]} Ra3+ {[%emt 0:00:11]} 35. Kd4 {[%emt 0:00:29]} (35. Ke2 $1 $14 {feels stronger.}) 35... Rd3+ {[%emt 0:01:08]} 36. Kc4 {[%emt 0:00:05]} Rd1 {[%emt 0:00:30][%cal Oe4e3]} 37. Rf5 {[%emt 0:03:04]} e3 {[%emt 0:01:12] Threatens to win with ...Ne4.} 38. fxe3 {[%emt 0:00:05]} (38. f3 $1 $11 {was the only way to keep the balance.}) 38... Bxg2 $17 {[%emt 0:01:25]} 39. h4 {[%emt 0:00:48]} Ne4 {[%emt 0:00:55][%csl LRd6,LRg3]} 40. Be5 {[%emt 0:00:00] [#]} (40. Bf4 $17) 40... g6 $1 $19 {[%emt 0:00:00][%cal Bg7g6,Bg6g5][%mdl 32]} (40... Nxd6+ 41. Bxd6 Rxd6 42. Re5 $11) 41. Rf4 {[%emt 0:13:04] [#] Rg4 is the strong threat.} g5 $1 {[%emt 0:04:10] Weighted Error Value: White=0.21 (precise) /Black=0.05 (flawless) .  Loses game:     	White=1     	---        Mistake:       	White=3     	Black=1      Inaccurate:     	White=1     	Black=1      OK:         	White=16    	Black=14     Best:        	---       	Black=4      Strong:       	White=4     	Black=3} ({Not} 41... Nxd6+ 42. Kb4 Rb1+ 43. Ka3 $17) 0-1

[Event "85th ARM-ch HL 2025"]
[Site "Yerevan"]
[Date "2025.01.14"]
[Round "1.5"]
[White "Andriasian, Zaven"]
[Black "Sargsyan, Sargis Vach."]
[Result "1-0"]
[Annotator "TA"]
[ECO "B11"]
[WhiteElo "2554"]
[BlackElo "2370"]
[PlyCount "113"]
[EventDate "2025.01.13"]
[EventType "tourn"]
[EventCountry "ARM"]
[SourceTitle "playchess.com"]
[Source "ChessBase"]
[SourceQuality "1"]
[TimeControl "40/5400+30:1800+30"]

{[%evp 10,113,24,12,29,27,20,18,24,24,22,0,1,27,13,-10,0,-8,-9,-11,-12,-9,0,0,0,0,0,0,7,0,0,0,27,20,41,51,36,43,65,62,61,67,282,37,54,0,161,155,147,80,100,92,84,87,95,81,108,95,127,68,200,202,377,367,328,173,392,392,384,384,391,385,391,391,421,391,391,391,481,451,451,451,444,437,449,449,516,516,605,598,582,445,556,542,509,494,708,683,1420,1415,29975,29976,29975,29976,29977,29978]} 1. e4 {[%emt 0:00:04]} c6 {[%emt 0:00:25]} 2. Nc3 {[%emt 0:00:43]} d5 {[%emt 0:00:11]} 3. Nf3 {[%emt 0:00:12]} dxe4 {[%emt 0:00:10]} 4. Nxe4 {[%emt 0:00:14]} Nf6 {[%emt 0:00:11]} 5. Qe2 {[%emt 0:00:20]} Nxe4 {[%emt 0:00:08]} 6. Qxe4 {[%emt 0:00:10]} Nd7 {[%emt 0:00:04]} 7. Bc4 {[%emt 0:04:14]} Nf6 {[%emt 0:00:21] [#]} 8. Ne5 $1 {[%emt 0:03:40][%csl Ge5][%cal Rc4f7]} e6 {[%emt 0:00:11]} 9. Qe2 {[%emt 0:00:15]} b5 {[%emt 0:00:29]} 10. Bb3 {[%emt 0:02:21]} (10. Nxc6 Qc7 11. Bd3 (11. Bxb5 $2 a6 $17) 11... Bb7 $15 (11... Qxc6 $2 12. Bxb5 $18)) 10... Qc7 {[%emt 0:03:54]} 11. d4 {[%emt 0:00:50]} Bd6 {[%emt 0:04:00]} 12. Bg5 {[%emt 0:01:36]} Nd5 {[%emt 0:03:08]} 13. Bd2 {[%emt 0:04:37]} O-O {[%emt 0:01:16]} 14. O-O {[%emt 0:01:18]} c5 {[%emt 0:07:56] and ...c4 should not be overlooked} 15. c3 {[%emt 0:00:20]} b4 {[%emt 0:16:03]} 16. Rfe1 {[%emt 0:04:07]} bxc3 {[%emt 0:02:01]} 17. bxc3 {[%emt 0:00:19]} Bb7 {[%emt 0:00:47]} 18. Qg4 {[%emt 0:04:43]} Rad8 {[%emt 0:11:25]} 19. Rad1 {[%emt 0:06:18]} Nf6 {[%emt 0:05:17]} 20. Qh4 {[%emt 0:05:25]} Be7 {[%emt 0:05:26]} 21. Bg5 {[%emt 0:07:41]} Nd5 {[%emt 0:01:31][%cal Bf6d5,Bd5e7,Be7g6][%mdl 32]} 22. Bxe7 {[%emt 0:03:35]} Nxe7 {[%emt 0:00:06] [#]} 23. Nxf7 $1 {[%emt 0:06:00]} Rxf7 {[%emt 0:02:02]} (23... Ng6 24. Qg5) 24. Bxe6 {[%emt 0:00:13]} Ng6 {[%emt 0:02:50]} 25. Qg5 {[%emt 0:02:15] Really sharp!} cxd4 $2 {[%emt 0:01:41]} (25... Rdf8 $1 $14) 26. cxd4 $2 {[%emt 0:03:44]} (26. Bxf7+ $18 Kxf7 27. Rxd4 (27. cxd4 Rd5 $14)) 26... Rdf8 {[%emt 0:05:18][%cal Og6f4]} 27. Qc5 {[%emt 0:06:47]} (27. Bxf7+ Qxf7 28. f3 h6 $15) (27. f3 $14) 27... Qf4 $2 {[%emt 0:00:40] [#]} (27... Kh8 $1 $11 28. Bxf7 Qxf7) 28. d5 $1 $18 {[%emt 0:00:52] Active counter play!} (28. Bxf7+ Qxf7 29. f3 (29. Qxa7 $2 Qxf2+ 30. Kh1 Bxg2#) (29. d5 Nf4 $17) 29... Nf4 $15) 28... Qg5 {[%emt 0:17:00][%cal Og6f4] Against d6} 29. Bxf7+ {[%emt 0:08:28]} (29. Qxa7 $142 Qf6 30. Rb1 (30. Qxb7 Qxe6 31. dxe6 Rxb7 $17) (30. Bxf7+ Qxf7 31. f3 Nf4 $16)) 29... Rxf7 $16 {[%emt 0:00:08]} 30. Re8+ {[%emt 0:00:39]} (30. Qxa7 Bxd5 31. Qb8+ Rf8 $17) 30... Nf8 {[%emt 0:00:08]} 31. Qe3 $36 {[%emt 0:01:26][%mdl 2048] Keeping Black busy.} (31. Qxa7 $2 Bxd5 32. Rxf8+ Rxf8 $19) 31... Qf5 {[%emt 0:03:27]} 32. f3 {[%emt 0:02:22]} (32. Qxa7 Qc2 (32... Bxd5 33. Qc5 $11) 33. Qd4 Rxf2 34. Qxf2 Qxd1+ 35. Qf1 Qd4+ (35... Qxf1+ 36. Kxf1 Bxd5 37. a3 $14) 36. Kh1 Qc5 $17) (32. h3 Bc8 33. d6 Bd7 34. Re5) 32... h6 {[%emt 0:01:19]} (32... Bxd5 $2 33. Re5 Qc2 34. Rexd5 $18 (34. Rdxd5 Qxa2 35. Rd1 Rf6 $18)) 33. h3 {[%emt 0:05:57]} (33. Qe6 {feels hotter.} Qc2 34. Re1 Qc5+ 35. Re3) 33... a5 {[%emt 0:02:13]} (33... Bxd5 $2 34. Re5 Qc2 35. Rdxd5 $18 (35. Rexd5 Qxa2 36. Qd3 Rb7 $18)) 34. Kh2 {[%emt 0:04:19]} (34. Qe6 $16) 34... Rd7 {[%emt 0:01:21]} (34... Bxd5 $2 35. Re5 Qc2 36. Rdxd5 $18) (34... Bc8 $14) 35. d6 $18 {[%emt 0:02:52]} a4 $2 {[%emt 0:01:05]} (35... Bc6 36. Re5 Qf6) 36. Rd4 {[%emt 0:03:52]} g5 {[%emt 0:02:56] Prevents Rf4} 37. Rxa4 {[%emt 0:01:45]} (37. Re7 $142) 37... Rxd6 $2 {[%emt 0:00:42]} (37... Bc6 {was called for.} 38. Rd4 Qf6) 38. Qe7 {[%emt 0:02:47][%csl LRb7,LRd6]} Bc6 {[%emt 0:00:30]} 39. Qxd6 {[%emt 0:00:40]} Bxe8 {[%emt 0:00:37]} 40. Ra8 {[%emt 0:00:00]} Kf7 {[%emt 0:00:00]} 41. a4 {[%emt 0:02:13]} (41. Qxh6 Qe5+ 42. Kh1 Qa1+ 43. Kh2 Qe5+ 44. Kh1 Qa1+ 45. Kh2 Qe5+ $11) 41... Nd7 {[%emt 0:04:09]} 42. Ra7 {[%emt 0:01:51][%cal Ba8a7,Ba7b7,Bb7b5][%mdl 32]} ({Weaker is} 42. Qxh6 Qe5+ 43. Kg1 Qe1+ 44. Kh2 Qe5+ 45. Kh1 Qe1+ 46. Kh2 Qe5+ $11) 42... h5 {[%emt 0:03:29]} 43. Rb7 {[%emt 0:02:33]} g4 {[%emt 0:04:15]} 44. Rb5 {[%emt 0:03:29]} Qf6 {[%emt 0:01:33]} 45. Qxf6+ {[%emt 0:01:12]} Nxf6 {[%emt 0:00:12]} 46. Rb7+ {[%emt 0:00:13]} Ke6 {[%emt 0:00:35]} 47. Rb6+ {[%emt 0:01:07]} Ke7 {[%emt 0:00:24]} 48. a5 {[%emt 0:00:25]} gxf3 {[%emt 0:00:06]} 49. gxf3 {[%emt 0:00:16] a6 would now be deadly.} Nd5 {[%emt 0:00:33]} 50. Rb8 {[%emt 0:03:35]} Nc7 {[%emt 0:00:27]} 51. Kg3 {[%emt 0:00:28]} Bc6 {[%emt 0:02:26]} 52. h4 {[%emt 0:03:47]} Kd6 {[%emt 0:00:43]} (52... Nb5 $142 53. Rh8 Nd4) 53. Rh8 {[%emt 0:01:49]} Be8 {[%emt 0:00:08] [#]} 54. a6 $1 {[%emt 0:00:22][%mdl 512]} Kc6 {[%emt 0:02:16]} (54... Bf7 55. a7) 55. a7 {[%emt 0:00:22]} Kb7 {[%emt 0:00:05]} 56. Rh7 {[%emt 0:00:10]} Bc6 {[%emt 0:00:12]} 57. a8=Q+ {[%emt 0:00:11]} 1-0